[Event "Schack-SM 2023: Mastarklassen"]
[Site "Helsingborg Arena, Mellersta Stenbocksgatan 14, Helsingborg, Sweden"]
[Date "2023.07.02"]
[Round "2.8"]
[White "Nylen, Anders"]
[Black "Carlstrom, Niklas"]
[Result "1/2-1/2"]
[TimeControl "90 minutes for 40 moves + 30 minutes for the rest of games + 30 seconds per move from move one."]
[WhiteElo "2094"]
[BlackElo "2125"]

1. d4 {[%clk 01:30:59]} f5 {[%clk 01:30:38]} {[%emt 00:00:21]} 2. Nf3 {[%clk
01:31:01]} {[%emt 00:00:29]} Nf6 {[%clk 01:30:49]} {[%emt 00:00:18]} 3. h3
{[%clk 01:30:26]} {[%emt 00:01:06]} d5 {[%clk 01:29:39]} {[%emt 00:01:40]} 4.
Bf4 {[%clk 01:30:25]} {[%emt 00:00:31]} e6 {[%clk 01:27:46]} {[%emt 00:02:22]}
5. e3 {[%clk 01:30:04]} {[%emt 00:00:52]} Bd6 {[%clk 01:26:23]} {[%emt
00:01:53]} 6. Be2 {[%clk 01:28:26]} {[%emt 00:02:08]} O-O {[%clk 01:24:26]}
{[%emt 00:02:26]} 7. O-O {[%clk 01:28:08]} {[%emt 00:00:49]} b6 {[%clk
01:20:21]} {[%emt 00:04:34]} 8. Nbd2 {[%clk 01:23:35]} {[%emt 00:05:05]} Bb7
{[%clk 01:18:33]} {[%emt 00:02:17]} 9. Ne5 {[%clk 01:22:44]} {[%emt 00:01:21]}
Nbd7 {[%clk 01:11:37]} {[%emt 00:07:25]} 10. Ndf3 {[%clk 01:21:12]} {[%emt
00:02:03]} Qe7 {[%clk 01:07:31]} {[%emt 00:04:35]} 11. a4 {[%clk 01:19:15]}
{[%emt 00:02:28]} a5 {[%clk 01:01:02]} {[%emt 00:06:59]} 12. Rc1 {[%clk
01:14:33]} {[%emt 00:05:12]} Ne4 {[%emt 00:13:29]} 13. c4 {[%clk 01:12:18]}
Nxe5 {[%clk 00:49:58]} {[%emt 00:01:19]} 14. Nxe5 {[%clk 01:12:06]} {[%emt
00:00:42]} g5 {[%clk 00:39:23]} {[%emt 00:11:05]} 15. Bh2 {[%clk 01:11:17]}
{[%emt 00:01:20]} f4 {[%clk 00:39:26]} {[%emt 00:00:27]} 16. f3 {[%clk
01:06:05]} {[%emt 00:05:43]} Nf6 {[%clk 00:34:44]} {[%emt 00:05:10]} 17. exf4
{[%clk 01:05:00]} {[%emt 00:01:36]} gxf4 {[%clk 00:35:02]} {[%emt 00:00:12]} 18.
Bxf4 {[%clk 01:04:23]} {[%emt 00:01:08]} Nh5 {[%clk 00:27:23]} {[%emt
00:08:07]} 19. Bh6 {[%clk 00:54:52]} {[%emt 00:10:02]} Bxe5 {[%clk 00:23:54]}
{[%emt 00:03:58]} 20. Bxf8 {[%clk 00:50:02]} {[%emt 00:05:21]} Rxf8 {[%clk
00:24:03]} {[%emt 00:00:20]} 21. dxe5 {[%clk 00:49:37]} {[%emt 00:00:56]} Qg5
{[%clk 00:24:05]} {[%emt 00:00:28]} 22. Rf2 {[%clk 00:40:38]} {[%emt 00:09:29]}
Nf4 {[%clk 00:20:18]} {[%emt 00:04:17]} 23. Kh1 {[%clk 00:38:00]} {[%emt
00:03:07]} d4 {[%clk 00:19:27]} {[%emt 00:01:21]} 24. Qd2 {[%clk 00:29:10]}
{[%emt 00:09:21]} Kh8 {[%clk 00:16:31]} {[%emt 00:03:26]} 25. Bd3 {[%clk
00:22:35]} {[%emt 00:07:05]} Qg3 {[%clk 00:13:12]} {[%emt 00:03:49]} 26. Rcf1
{[%clk 00:13:25]} {[%emt 00:09:41]} Rg8 {[%clk 00:07:56]} {[%emt 00:05:45]} 27.
Be4 {[%clk 00:08:57]} {[%emt 00:04:59]} Nxh3 {[%clk 00:08:03]} {[%emt
00:00:22]} 28. Qh6 {[%clk 00:04:12]} {[%emt 00:05:15]} Nxf2+ {[%clk 00:07:59]}
{[%emt 00:00:33]} 29. Rxf2 {[%clk 00:04:33]} {[%emt 00:00:10]} Rg7 {[%clk
00:05:07]} {[%emt 00:03:22]} 30. Kg1 {[%clk 00:03:31]} {[%emt 00:01:32]} Bxe4
{[%clk 00:03:56]} {[%emt 00:01:39]} 31. fxe4 {[%clk 00:04:00]} {[%emt
00:00:03]} Qxe5 {[%clk 00:03:57]} {[%emt 00:00:27]} 32. Rf8+ {[%clk 00:03:05]}
{[%emt 00:01:26]} Rg8 {[%clk 00:04:20]} {[%emt 00:00:07]} 33. Rf7 {[%clk
00:03:08]} {[%emt 00:00:28]} Rg7 {[%clk 00:03:46]} {[%emt 00:01:03]} 34. Rf8+
{[%clk 00:03:05]} {[%emt 00:00:34]} Rg8 {[%clk 00:04:10]} {[%emt 00:00:05]} 35.
Rf7 {[%clk 00:02:30]} {[%emt 00:01:05]} Rg7 {[%clk 00:04:37]} {[%emt 00:00:02]}
36. Rf8+ {[%clk 00:02:13]} {[%emt 00:00:47]} 1/2-1/2

[Event "Schack-SM 2023: Mastarklassen"]
[Site "Helsingborg Arena, Mellersta Stenbocksgatan 14, Helsingborg, Sweden"]
[Date "2023.07.02"]
[Round "2.9"]
[White "Troberg Eskola, Love"]
[Black "Liden, Tommy"]
[Result "1-0"]
[TimeControl "90 minutes for 40 moves + 30 minutes for the rest of games + 30 seconds per move from move one."]
[WhiteElo "2038"]
[BlackElo "2107"]

1. c4 {[%clk 01:30:50]} {[%emt 00:00:10]} e6 {[%clk 01:30:47]} {[%emt
00:00:14]} 2. Nc3 {[%clk 01:30:37]} {[%emt 00:00:42]} d5 {[%clk 01:30:57]}
{[%emt 00:00:20]} 3. e3 {[%clk 01:30:50]} {[%emt 00:00:17]} c6 {[%clk
01:30:23]} {[%emt 00:01:05]} 4. Nf3 {[%clk 01:30:55]} {[%emt 00:00:25]} Bd6
{[%clk 01:28:26]} {[%emt 00:02:27]} 5. b3 {[%clk 01:30:37]} {[%emt 00:00:49]}
f5 {[%clk 01:26:48]} {[%emt 00:02:07]} 6. Bb2 {[%clk 01:30:30]} {[%emt
00:00:36]} Nf6 {[%clk 01:27:03]} {[%emt 00:00:17]} 7. Qc2 {[%clk 01:29:35]}
{[%emt 00:01:24]} O-O {[%clk 01:26:51]} {[%emt 00:00:41]} 8. Be2 {[%clk
01:26:55]} {[%emt 00:03:11]} a6 {[%clk 01:23:07]} {[%emt 00:04:14]} 9. d4
{[%clk 01:18:46]} {[%emt 00:08:38]} f4 {[%clk 01:18:19]} {[%emt 00:05:18]} 10.
e4 {[%clk 01:14:28]} {[%emt 00:04:49]} dxe4 {[%clk 01:16:50]} {[%emt 00:01:59]}
11. Nxe4 {[%clk 01:14:15]} {[%emt 00:00:42]} Nxe4 {[%clk 01:16:20]} {[%emt
00:01:01]} 12. Qxe4 {[%clk 01:14:36]} {[%emt 00:00:09]} Bb4+ {[%clk 01:12:29]}
{[%emt 00:04:21]} 13. Kf1 {[%clk 01:13:51]} {[%emt 00:01:15]} Qf6 {[%clk
01:05:44]} {[%emt 00:07:14]} 14. Bd3 {[%clk 01:12:43]} {[%emt 00:01:38]} Qh6
{[%clk 01:02:11]} {[%emt 00:04:03]} 15. h4 {[%clk 01:02:59]} {[%emt 00:10:14]}
Nd7 {[%clk 00:53:34]} {[%emt 00:09:08]} 16. Ng5 {[%clk 01:01:19]} {[%emt
00:02:10]} Nf6 {[%clk 00:51:58]} {[%emt 00:02:06]} 17. Qxf4 {[%clk 00:49:21]}
{[%emt 00:12:28]} e5 {[%clk 00:43:48]} {[%emt 00:08:40]} 18. Qc1 {[%clk
00:48:10]} {[%emt 00:01:40]} Ng4 {[%clk 00:41:05]} {[%emt 00:03:13]} 19. f3
{[%clk 00:41:42]} {[%emt 00:06:58]} Bf5 {[%clk 00:36:26]} {[%emt 00:05:10]} 20.
Bxf5 {[%clk 00:40:45]} {[%emt 00:01:26]} Rxf5 {[%clk 00:36:54]} {[%emt
00:00:03]} 21. Kg1 {[%clk 00:39:50]} {[%emt 00:01:24]} Nf6 {[%clk 00:32:37]}
{[%emt 00:04:47]} 22. a3 {[%clk 00:29:22]} {[%emt 00:10:58]} Be7 {[%clk
00:31:46]} {[%emt 00:01:20]} 23. Qb1 {[%clk 00:18:35]} {[%emt 00:11:18]} Rf4
{[%clk 00:28:52]} {[%emt 00:03:24]} 24. g3 {[%clk 00:18:05]} {[%emt 00:00:59]}
Rxf3 {[%clk 00:28:50]} {[%emt 00:00:32]} 25. Nxf3 {[%clk 00:17:48]} {[%emt
00:00:48]} Qe3+ {[%clk 00:29:14]} {[%emt 00:00:06]} 26. Kg2 {[%clk 00:18:06]}
{[%emt 00:00:12]} Qe2+ {[%clk 00:29:35]} {[%emt 00:00:08]} 27. Kh3 {[%clk
00:17:58]} {[%emt 00:00:39]} Qxf3 {[%clk 00:28:31]} {[%emt 00:01:33]} 28. Qd1
{[%clk 00:13:25]} {[%emt 00:05:03]} Qf5+ {[%clk 00:28:27]} {[%emt 00:00:34]} 29.
Kg2 {[%clk 00:11:52]} {[%emt 00:02:03]} Ng4 {[%clk 00:26:42]} {[%emt 00:02:15]}
30. Qe2 {[%clk 00:10:42]} {[%emt 00:01:40]} exd4 {[%clk 00:13:01]} {[%emt
00:14:12]} 31. Bxd4 {[%clk 00:10:31]} {[%emt 00:00:42]} Re8 {[%clk 00:07:55]}
{[%emt 00:05:35]} 32. Rae1 {[%clk 00:10:13]} {[%emt 00:00:47]} c5 {[%clk
00:06:15]} {[%emt 00:02:10]} 33. Rhf1 {[%clk 00:08:59]} {[%emt 00:01:45]} Qd7
{[%clk 00:03:20]} {[%emt 00:03:24]} 34. Bxc5 {[%clk 00:06:53]} {[%emt
00:02:37]} Qc6+ {[%clk 00:02:50]} {[%emt 00:00:59]} 35. Qf3 {[%clk 00:05:59]}
{[%emt 00:01:25]} Bxc5 {[%clk 00:00:48]} {[%emt 00:02:32]} 36. Qxc6 {[%clk
00:05:58]} 1-0

[Event "Schack-SM 2023: Veteran-SM 65+"]
[Site "Helsingborg Arena, Mellersta Stenbocksgatan 14, Helsingborg, Sweden"]
[Date "2023.07.02"]
[Round "2.1"]
[White "Soderberg, Per"]
[Black "Westin, Ake"]
[Result "1-0"]
[TimeControl "90 minutes for 40 moves + 30 minutes for the rest of games + 30 seconds per move from move one."]
[WhiteTitle "CM"]
[WhiteElo "2111"]
[BlackElo "2009"]

1. e4 {[%clk 01:30:57]} {[%emt 00:00:02]} e6 {[%clk 01:30:39]} {[%emt
00:00:21]} 2. d4 {[%clk 01:31:19]} {[%emt 00:00:07]} d5 {[%clk 01:31:01]}
{[%emt 00:00:09]} 3. Nc3 {[%clk 01:31:42]} {[%emt 00:00:08]} Nc6 {[%clk
01:31:15]} {[%emt 00:00:15]} 4. e5 {[%clk 01:31:12]} {[%emt 00:01:00]} f6
{[%clk 01:30:59]} {[%emt 00:00:47]} 5. Nf3 {[%clk 01:31:24]} {[%emt 00:00:17]}
fxe5 {[%clk 01:26:59]} {[%emt 00:04:30]} 6. dxe5 {[%clk 01:30:23]} {[%emt
00:01:31]} Bc5 {[%clk 01:25:58]} {[%emt 00:01:31]} 7. Bd3 {[%clk 01:29:39]}
{[%emt 00:01:13]} Qe7 {[%clk 01:17:12]} {[%emt 00:09:17]} 8. O-O {[%clk
01:28:07]} {[%emt 00:02:02]} Nh6 {[%clk 01:10:53]} {[%emt 00:06:49]} 9. Bg5
{[%clk 01:12:22]} {[%emt 00:16:15]} Qf7 {[%clk 01:06:08]} {[%emt 00:05:12]} 10.
Qd2 {[%clk 01:04:06]} {[%emt 00:08:48]} Qh5 {[%clk 01:01:14]} {[%emt 00:05:25]}
11. Ne2 {[%clk 01:00:23]} {[%emt 00:04:12]} Ng4 {[%clk 00:49:04]} {[%emt
00:12:40]} 12. Ng3 {[%clk 00:47:19]} {[%emt 00:13:34]} Qf7 {[%clk 00:48:58]}
{[%emt 00:00:36]} 13. Rae1 {[%clk 00:47:06]} {[%emt 00:00:43]} Bd7 {[%clk
00:36:18]} {[%emt 00:13:11]} 14. h3 {[%clk 00:44:09]} {[%emt 00:03:27]} Nh6
{[%clk 00:36:33]} {[%emt 00:00:15]} 15. Bxh6 {[%clk 00:43:27]} {[%emt
00:01:12]} gxh6 {[%clk 00:36:54]} {[%emt 00:00:08]} 16. Qxh6 {[%clk 00:43:41]}
{[%emt 00:00:16]} Bf8 {[%clk 00:36:30]} {[%emt 00:00:55]} 17. Qh5 {[%clk
00:41:57]} {[%emt 00:02:13]} Be7 {[%clk 00:34:14]} {[%emt 00:02:46]} 18. c3
{[%clk 00:40:13]} {[%emt 00:02:15]} Qxh5 {[%clk 00:33:54]} {[%emt 00:00:50]} 19.
Nxh5 {[%clk 00:40:37]} {[%emt 00:00:06]} O-O-O {[%clk 00:34:10]} {[%emt
00:00:15]} 20. Nd4 {[%clk 00:40:09]} {[%emt 00:00:56]} Rdf8 {[%clk 00:32:35]}
{[%emt 00:02:05]} 21. g3 {[%clk 00:37:40]} {[%emt 00:02:59]} Rf7 {[%clk
00:27:57]} {[%emt 00:05:08]} 22. Nf4 {[%clk 00:35:50]} {[%emt 00:02:19]} Nd8
{[%clk 00:26:53]} {[%emt 00:01:36]} 23. Kh2 {[%clk 00:28:55]} {[%emt 00:07:25]}
c5 {[%clk 00:25:43]} {[%emt 00:01:39]} 24. Nc2 {[%clk 00:22:39]} {[%emt
00:06:46]} Nc6 {[%clk 00:24:23]} {[%emt 00:01:51]} 25. Bb5 {[%clk 00:17:14]}
{[%emt 00:05:56]} Kc7 {[%clk 00:22:23]} {[%emt 00:02:30]} 26. Nxd5+ {[%clk
00:16:19]} {[%emt 00:01:24]} exd5 {[%clk 00:21:56]} {[%emt 00:00:57]} 27. e6
{[%clk 00:16:44]} {[%emt 00:00:05]} Rf3 {[%clk 00:20:22]} {[%emt 00:02:04]} 28.
exd7 {[%clk 00:16:57]} {[%emt 00:00:18]} Kxd7 {[%clk 00:19:41]} {[%emt
00:01:10]} 29. Kg2 {[%clk 00:16:30]} {[%emt 00:00:57]} Rhf8 {[%clk 00:19:25]}
{[%emt 00:00:46]} 30. Be2 {[%clk 00:15:42]} {[%emt 00:01:18]} R3f6 {[%clk
00:19:31]} {[%emt 00:00:23]} 31. f4 {[%clk 00:15:37]} {[%emt 00:00:35]} d4
{[%clk 00:18:02]} {[%emt 00:02:00]} 32. Bb5 {[%clk 00:11:30]} {[%emt 00:04:37]}
Rd6 {[%clk 00:16:45]} {[%emt 00:01:45]} 33. cxd4 {[%clk 00:08:35]} {[%emt
00:03:27]} cxd4 {[%clk 00:17:05]} {[%emt 00:00:09]} 34. Rd1 {[%clk 00:08:57]}
{[%emt 00:00:08]} Bf6 {[%clk 00:16:57]} {[%emt 00:00:38]} 35. Nb4 {[%clk
00:08:44]} {[%emt 00:00:43]} Kc7 {[%clk 00:15:21]} {[%emt 00:02:06]} 36. Bxc6
{[%clk 00:06:23]} {[%emt 00:02:52]} bxc6 {[%clk 00:15:40]} {[%emt 00:00:11]} 37.
Nd3 {[%clk 00:06:46]} {[%emt 00:00:07]} Re8 {[%clk 00:14:23]} {[%emt 00:01:47]}
38. Rfe1 {[%clk 00:06:03]} {[%emt 00:01:12]} Re3 {[%clk 00:13:55]} {[%emt
00:00:58]} 39. Kf2 {[%clk 00:03:32]} {[%emt 00:03:00]} Rde6 {[%clk 00:13:24]}
{[%emt 00:01:02]} 40. Rd2 {[%clk 00:02:34]} {[%emt 00:01:28]} h5 {[%clk
00:10:58]} {[%emt 00:02:57]} 41. h4 {[%clk 00:30:14]} {[%emt 00:02:50]} Bg7
{[%clk 00:35:58]} {[%emt 00:05:29]} 42. Rde2 {[%clk 00:29:55]} {[%emt
00:00:49]} Rg6 {[%clk 00:35:47]} {[%emt 00:00:42]} 43. Rxe3 {[%clk 00:29:14]}
{[%emt 00:01:10]} dxe3+ {[%clk 00:36:08]} {[%emt 00:00:09]} 44. Kf3 {[%clk
00:29:35]} {[%emt 00:00:09]} Bd4 {[%clk 00:36:21]} {[%emt 00:00:17]} 45. Re2
{[%clk 00:29:27]} {[%emt 00:00:38]} c5 {[%clk 00:35:56]} {[%emt 00:00:56]} 46.
Ne1 {[%clk 00:29:21]} {[%emt 00:00:35]} Rb6 {[%clk 00:33:04]} {[%emt 00:03:24]}
47. b3 {[%clk 00:29:36]} {[%emt 00:00:15]} a5 {[%clk 00:33:20]} {[%emt
00:00:13]} 48. Ng2 {[%clk 00:28:39]} {[%emt 00:01:26]} a4 {[%clk 00:33:33]}
{[%emt 00:00:18]} 49. bxa4 {[%clk 00:28:18]} {[%emt 00:00:51]} Ra6 {[%clk
00:33:22]} {[%emt 00:00:41]} 50. Nxe3 {[%clk 00:28:26]} {[%emt 00:00:22]} Rxa4
{[%clk 00:33:06]} {[%emt 00:00:45]} 51. Nf5 {[%clk 00:28:18]} {[%emt 00:00:37]}
Bf6 {[%clk 00:32:55]} {[%emt 00:00:42]} 52. Rc2 {[%clk 00:27:46]} {[%emt
00:01:03]} Kc6 {[%clk 00:32:32]} {[%emt 00:00:53]} 53. Ne3 {[%clk 00:25:37]}
{[%emt 00:02:38]} Kb5 {[%clk 00:29:43]} {[%emt 00:03:20]} 54. g4 {[%clk
00:21:22]} {[%emt 00:04:45]} hxg4+ {[%clk 00:28:17]} {[%emt 00:01:56]} 55. Kxg4
{[%clk 00:21:32]} {[%emt 00:00:20]} c4 {[%clk 00:27:35]} {[%emt 00:01:12]} 56.
h5 {[%clk 00:21:07]} {[%emt 00:00:54]} Bd4 {[%clk 00:26:17]} {[%emt 00:01:48]}
57. Rxc4 {[%clk 00:18:37]} {[%emt 00:03:01]} Rxc4 {[%clk 00:25:02]} {[%emt
00:01:44]} 58. Nxc4 {[%clk 00:19:01]} {[%emt 00:00:06]} Kxc4 {[%clk 00:25:19]}
{[%emt 00:00:14]} 59. Kg5 {[%clk 00:19:18]} {[%emt 00:00:13]} 1-0

[Event "Schack-SM 2023: Veteran-SM 50+"]
[Site "Helsingborg Arena, Mellersta Stenbocksgatan 14, Helsingborg, Sweden"]
[Date "2023.07.02"]
[Round "2.1"]
[White "Bengtsson, Ola"]
[Black "Petersson, Kjell"]
[Result "1/2-1/2"]
[TimeControl "90 minutes for 40 moves + 30 minutes for the rest of games + 30 seconds per move from move one."]
[BlackTitle "CM"]
[WhiteElo "1991"]
[BlackElo "2061"]

1. d4 {[%clk 01:30:53]} {[%emt 00:00:06]} f5 {[%clk 01:30:59]} {[%emt
00:00:02]} 2. g3 {[%clk 01:30:28]} {[%emt 00:00:55]} Nf6 {[%clk 01:31:24]}
{[%emt 00:00:05]} 3. Bg2 {[%clk 01:30:50]} {[%emt 00:00:07]} e6 {[%clk
01:31:42]} {[%emt 00:00:13]} 4. Bg5 {[%clk 01:30:40]} {[%emt 00:00:39]} d5
{[%clk 01:31:04]} {[%emt 00:01:09]} 5. f3 {[%clk 01:28:50]} {[%emt 00:02:20]}
c5 {[%clk 01:23:05]} {[%emt 00:08:29]} 6. e4 {[%clk 01:18:30]} {[%emt
00:10:49]} h6 {[%clk 01:02:22]} {[%emt 00:21:13]} 7. Bxf6 {[%clk 01:15:29]}
{[%emt 00:03:31]} Qxf6 {[%clk 01:02:46]} {[%emt 00:00:07]} 8. c3 {[%clk
01:11:03]} {[%emt 00:04:55]} cxd4 {[%clk 01:01:51]} {[%emt 00:01:25]} 9. cxd4
{[%clk 01:11:07]} {[%emt 00:00:26]} Bb4+ {[%clk 01:00:54]} {[%emt 00:01:28]} 10.
Nc3 {[%clk 01:10:37]} {[%emt 00:01:00]} fxe4 {[%clk 00:58:28]} {[%emt
00:02:56]} 11. fxe4 {[%clk 01:09:56]} {[%emt 00:01:11]} O-O {[%clk 00:56:27]}
{[%emt 00:02:31]} 12. Nh3 {[%emt 00:12:17]} dxe4 {[%clk 00:44:52]} {[%emt
00:02:56]} 13. Rf1 {[%emt 00:02:31]} Qd8 {[%clk 00:43:45]} {[%emt 00:00:22]} 14.
Rxf8+ {[%emt 00:02:22]} Qxf8 {[%emt 00:09:49]} 15. Qb3 {[%clk 00:52:05]} {[%emt
00:04:31]} Nc6 {[%clk 00:39:44]} {[%emt 00:03:46]} 16. O-O-O {[%clk 00:52:01]}
{[%emt 00:00:33]} Na5 {[%clk 00:37:28]} {[%emt 00:02:47]} 17. Qc2 {[%clk
00:49:00]} {[%emt 00:03:30]} Bd7 {[%clk 00:37:01]} {[%emt 00:00:58]} 18. Nf4
{[%clk 00:45:55]} {[%emt 00:03:34]} Bxc3 {[%clk 00:33:22]} {[%emt 00:04:10]} 19.
bxc3 {[%emt 00:03:29]} Qa3+ 20. Qb2 {[%clk 00:44:47]} {[%emt 00:00:09]} Qxb2+
{[%clk 00:32:15]} {[%emt 00:00:37]} 21. Kxb2 {[%clk 00:45:04]} {[%emt
00:00:12]} Nc4+ {[%clk 00:32:12]} {[%emt 00:00:34]} 22. Kb3 {[%clk 00:45:05]}
{[%emt 00:00:28]} Ba4+ {[%clk 00:27:22]} {[%emt 00:05:20]} 23. Kxc4 {[%clk
00:44:12]} {[%emt 00:01:24]} Rc8+ {[%clk 00:22:07]} {[%emt 00:05:45]} 24. Kb4
{[%clk 00:44:31]} {[%emt 00:00:10]} Bxd1 {[%clk 00:22:12]} {[%emt 00:00:25]} 25.
Bxe4 {[%clk 00:44:45]} {[%emt 00:00:16]} Kf7 {[%clk 00:21:49]} {[%emt
00:00:53]} 26. c4 {[%clk 00:43:56]} {[%emt 00:01:19]} g5 {[%clk 00:11:30]}
{[%emt 00:10:50]} 27. Nd3 {[%clk 00:43:35]} {[%emt 00:00:50]} Rc7 {[%clk
00:09:29]} {[%emt 00:02:31]} 28. a4 {[%clk 00:35:11]} {[%emt 00:08:54]} Kf6
{[%clk 00:07:38]} {[%emt 00:02:21]} 29. a5 {[%clk 00:34:42]} {[%emt 00:00:59]}
Bc2 {[%clk 00:06:28]} {[%emt 00:01:40]} 30. c5 {[%clk 00:33:26]} {[%emt
00:01:47]} h5 {[%clk 00:05:03]} {[%emt 00:01:54]} 31. Kb5 {[%clk 00:31:19]}
{[%emt 00:02:37]} h4 {[%clk 00:03:50]} {[%emt 00:01:44]} 32. gxh4 {[%clk
00:30:47]} {[%emt 00:01:01]} gxh4 {[%clk 00:04:17]} {[%emt 00:00:03]} 33. a6
{[%clk 00:29:52]} {[%emt 00:01:25]} bxa6+ {[%clk 00:03:57]} {[%emt 00:00:50]}
34. Kxa6 {[%clk 00:30:04]} {[%emt 00:00:18]} Kg5 {[%clk 00:02:51]} {[%emt
00:01:36]} 35. Nf2 {[%clk 00:26:05]} {[%emt 00:04:28]} Bxe4 {[%clk 00:02:10]}
{[%emt 00:01:12]} 36. Nxe4+ {[%clk 00:26:24]} {[%emt 00:00:11]} Kf4 {[%clk
00:01:46]} {[%emt 00:00:55]} 37. Nd6 {[%clk 00:26:23]} {[%emt 00:00:31]} Ke3
{[%clk 00:01:24]} {[%emt 00:00:51]} 38. Nb5 {[%clk 00:26:37]} {[%emt 00:00:16]}
Rg7 {[%clk 00:00:45]} {[%emt 00:01:10]} 39. c6 {[%clk 00:26:44]} {[%emt
00:00:22]} h3 {[%clk 00:00:42]} 40. c7 {[%clk 00:26:38]} {[%emt 00:01:10]} Rxc7
{[%clk 00:00:37]} 41. Nxc7 {[%clk 00:26:38]} Kxd4 {[%clk 00:00:37]} 42. Nxe6+
{[%clk 00:26:38]} 1/2-1/2

[Event "Schack-SM 2023: Junior-SM"]
[Site "Helsingborg Arena, Mellersta Stenbocksgatan 14, Helsingborg, Sweden"]
[Date "2023.07.02"]
[Round "2.1"]
[White "Carlsson, Ludvig"]
[Black "Wernberg, Hugo"]
[Result "1/2-1/2"]
[TimeControl "90 minutes for 40 moves + 30 minutes for the rest of the game + 30 seconds per move from move one."]
[WhiteTitle "IM"]
[BlackTitle "FM"]
[WhiteElo "2373"]
[BlackElo "2217"]

1. e4 {[%clk 01:30:52]} {[%emt 00:00:06]} e5 {[%clk 01:30:45]} {[%emt
00:00:17]} 2. Nf3 {[%clk 01:31:13]} {[%emt 00:00:09]} Nc6 {[%clk 01:31:11]}
{[%emt 00:00:04]} 3. Bb5 {[%clk 01:31:30]} {[%emt 00:00:13]} a6 {[%clk
01:31:28]} {[%emt 00:00:14]} 4. Ba4 {[%clk 01:31:52]} {[%emt 00:00:07]} Nf6
{[%clk 01:29:46]} {[%emt 00:02:12]} 5. O-O {[%clk 01:32:12]} {[%emt 00:00:10]}
Nxe4 {[%clk 01:28:27]} {[%emt 00:01:49]} 6. d4 {[%clk 01:30:40]} {[%emt
00:02:02]} b5 {[%clk 01:28:44]} {[%emt 00:00:14]} 7. Bb3 {[%clk 01:31:03]}
{[%emt 00:00:07]} d5 {[%clk 01:29:03]} {[%emt 00:00:11]} 8. dxe5 {[%clk
01:31:27]} {[%emt 00:00:07]} Be6 {[%clk 01:29:20]} {[%emt 00:00:12]} 9. Nbd2
{[%clk 01:27:54]} {[%emt 00:04:03]} Be7 {[%clk 01:26:40]} {[%emt 00:03:10]} 10.
c3 {[%clk 01:20:53]} {[%emt 00:07:31]} O-O {[%clk 01:25:45]} {[%emt 00:01:26]}
11. Bc2 {[%clk 01:21:17]} {[%emt 00:00:06]} f5 {[%clk 01:25:16]} {[%emt
00:00:59]} 12. Nb3 {[%clk 01:21:14]} {[%emt 00:00:33]} Qd7 {[%clk 01:23:50]}
{[%emt 00:01:56]} 13. Nfd4 {[%clk 01:20:19]} {[%emt 00:01:24]} Nxd4 {[%clk
01:21:54]} {[%emt 00:02:27]} 14. Nxd4 {[%clk 01:20:16]} {[%emt 00:00:33]} c5
{[%clk 01:21:52]} {[%emt 00:00:32]} 15. Nxe6 {[%clk 01:20:39]} {[%emt
00:00:07]} Qxe6 {[%clk 01:22:17]} {[%emt 00:00:06]} 16. f3 {[%clk 01:20:44]}
{[%emt 00:00:24]} Ng5 {[%clk 01:21:22]} {[%emt 00:01:25]} 17. Bxg5 {[%clk
01:20:47]} {[%emt 00:00:27]} Bxg5 {[%clk 01:21:40]} {[%emt 00:00:12]} 18. f4
{[%clk 01:21:12]} {[%emt 00:00:05]} Be7 {[%clk 01:18:40]} {[%emt 00:03:29]} 19.
Kh1 {[%clk 01:16:40]} {[%emt 00:05:01]} Rad8 {[%clk 01:09:17]} {[%emt
00:09:54]} 20. a4 {[%clk 01:10:37]} {[%emt 00:06:33]} Qb6 {[%clk 00:37:12]}
{[%emt 00:32:35]} 21. axb5 {[%clk 01:05:19]} {[%emt 00:05:48]} axb5 {[%clk
00:37:12]} {[%emt 00:00:29]} 22. Qe2 {[%clk 00:53:48]} {[%emt 00:12:01]} c4
{[%clk 00:27:49]} {[%emt 00:09:53]} 23. b3 {[%clk 00:43:12]} {[%emt 00:11:06]}
Qc5 {[%clk 00:23:38]} {[%emt 00:04:41]} 24. Rad1 {[%clk 00:32:34]} {[%emt
00:11:08]} d4 {[%clk 00:20:34]} {[%emt 00:03:34]} 25. bxc4 {[%clk 00:30:32]}
{[%emt 00:02:32]} bxc4 {[%clk 00:20:30]} {[%emt 00:00:34]} 26. cxd4 {[%clk
00:26:08]} {[%emt 00:04:55]} Rxd4 {[%clk 00:20:50]} {[%emt 00:00:10]} 27. Rxd4
{[%clk 00:25:55]} {[%emt 00:00:43]} Qxd4 {[%clk 00:21:14]} {[%emt 00:00:07]} 28.
Qf3 {[%clk 00:24:12]} {[%emt 00:02:13]} Qd2 {[%clk 00:17:18]} {[%emt 00:04:26]}
29. Bb1 {[%clk 00:17:20]} {[%emt 00:07:21]} g6 {[%clk 00:08:52]} {[%emt
00:08:57]} 30. Rd1 {[%clk 00:16:08]} {[%emt 00:01:43]} Qb4 {[%clk 00:09:07]}
{[%emt 00:00:15]} 31. h3 {[%clk 00:16:32]} {[%emt 00:00:06]} c3 {[%clk
00:07:07]} {[%emt 00:02:30]} 32. Bc2 {[%clk 00:13:32]} {[%emt 00:03:30]} Kh8
{[%clk 00:06:59]} {[%emt 00:00:38]} 33. Rd7 {[%clk 00:11:33]} {[%emt 00:02:29]}
Rd8 {[%clk 00:02:53]} {[%emt 00:04:36]} 34. Rxd8+ {[%clk 00:09:20]} {[%emt
00:02:43]} Bxd8 {[%clk 00:03:16]} {[%emt 00:00:07]} 35. Qd5 {[%clk 00:09:48]}
{[%emt 00:00:01]} Be7 {[%clk 00:01:12]} {[%emt 00:02:33]} 36. Qf7 {[%clk
00:07:59]} {[%emt 00:02:19]} Qa3 {[%clk 00:01:37]} {[%emt 00:00:06]} 37. Kh2
{[%clk 00:08:10]} {[%emt 00:00:19]} Qb4 {[%clk 00:01:46]} {[%emt 00:00:22]} 38.
Kh1 {[%clk 00:05:54]} {[%emt 00:02:46]} Qa3 {[%clk 00:02:10]} {[%emt 00:00:07]}
39. Kh2 {[%clk 00:04:30]} {[%emt 00:01:53]} Qb4 {[%clk 00:02:35]} {[%emt
00:00:05]} 40. Kh1 {[%clk 00:04:06]} {[%emt 00:00:54]} 1/2-1/2